Workbook

Sheet Sheet1
C1: Developed by: Shane Janzen
A3: Legend
A4: Input Cells | D4: Imperial | G4: Metric | J4: N | K4: P | L4: K | M4: S | AH4: Min cost
A5: Output Cells | C5: Total Acres | D5: 25 | F5: Total Hectares | G5: =D5/2.47105 -> 10.11715667 | I5: Desired Blend (lbs/ac) | J5: 75 | K5: 50 | L5: 20 | M5: 15 | Z5: Price (per lbs) | AA5: =N17*0.98420653/2240 -> 0.186735614 | AB5: =N18*0.98420653/2240 -> 0.2768080866 | AC5: =N19*0.98420653/2240 -> 0.1977200618 | AD5: =N20*0.98420653/2240 -> 0.1977200618 | AE5: =N21*0.98420653/2240 -> 0.202113841 | AH5: =SUMPRODUCT(AA5:AE5,AA8:AE8) -> 68.62088373
C6: Total Cost | D6: =D5*D11 -> 1715.522093 | F6: Total Cost | G6: =D6 -> 1715.522093 | I6: Actual Blend | J6: =AF9 -> 75 | K6: =AF10 -> 55 | L6: =AF11 -> 20 | M6: =AF12 -> 15 | Z6: Fertilizer | AA6: 1 | AB6: 2 | AC6: 3 | AD6: 4 | AE6: 5
C7: Total lbs of Fertilizer | D7: =D10*D5 -> 7770.519788 | F7: Total kg of fertilizer | G7: =D7*0.45359237 -> 3524.648487
Z8: Quantity | AA8: 109.2182274 | AB8: 105.7692308 | AC8: 33.33333333 | AD8: 62.5 | AE8: 0
Z9: Nitrogen | AA9: =T17 -> 0.46 | AB9: =T18 -> 0.11 | AC9: =T19 -> 0 | AD9: =T20 -> 0.21 | AE9: =T21 -> 0 | AF9: =SUMPRODUCT(AA$8:AE$8,AA9:AE9) -> 75 | AG9: >= | AH9: =J5 -> 75
C10: Total fertilizer lbs/acre | D10: =SUM(AA8:AE8) -> 310.8207915 | F10: kg/ha | G10: =D10*1.121 -> 348.4301073 | Z10: Phosphorous | AA10: =U17 -> 0 | AB10: =U18 -> 0.52 | AC10: =U19 -> 0 | AD10: =U20 -> 0 | AE10: =U21 -> 0 | AF10: =SUMPRODUCT(AA$8:AE$8,AA10:AE10) -> 55 | AG10: >= | AH10: =K5 -> 50
C11: Price/acre | D11: =AH5 -> 68.62088373 | F11: Price/ha | G11: =G6/G5 -> 169.5656347 | Z11: Potassium | AA11: =V17 -> 0 | AB11: =V18 -> 0 | AC11: =V19 -> 0.6 | AD11: =V20 -> 0 | AE11: =V21 -> 0 | AF11: =SUMPRODUCT(AA$8:AE$8,AA11:AE11) -> 20 | AG11: >= | AH11: =L5 -> 20
Z12: Sulpher | AA12: =W17 -> 0 | AB12: =W18 -> 0 | AC12: =W19 -> 0 | AD12: =W20 -> 0.24 | AE12: =W21 -> 0 | AF12: 15 | AG12: >= | AH12: =M5 -> 15
H16: Bulk Density (lbs/cu ft) | I16: Fertilizer Type | J16: N | K16: P | L16: K | M16: S | N16: Price (mt) | O16: Quantity to Purchase | P16: Product lbs/ac | T16: %N | U16: %P | V16: %K | W16: %S | X16: Bulk Density (lbs/cu ft)
H17: 46 | I17: 1 | J17: 46 | K17: 0 | L17: 0 | M17: 0 | N17: 425 | O17: =AA8*D5 -> 2730.455686 | P17: =O17/D5 -> 109.2182274 | T17: =J17/100 -> 0.46 | U17: 0 | V17: 0 | W17: 0 | X17: =H17 -> 46
C18: Percent of Blend | D18: % | H18: 58 | I18: 2 | J18: 11 | K18: 52 | L18: 0 | M18: 0 | N18: 630 | O18: =AB8*D5 -> 2644.230769 | P18: =O18/D5 -> 105.7692308 | T18: 0.11 | U18: 0.52 | V18: 0 | W18: 0 | X18: =H18 -> 58
C19: N | D19: =(AA8*AA9+AB8*AB9+AC8*AC9+AD8*AD9+AE8*AE9)/D10 -> 0.2412965993 | H19: 65 | I19: 3 | J19: 0 | K19: 0 | L19: 60 | M19: 0 | N19: 450 | O19: =AC8*D5 -> 833.3333333 | P19: =O19/D5 -> 33.33333333 | T19: 0 | U19: 0 | V19: 0.6 | W19: 0 | X19: =H19 -> 65
C20: P | D20: =(AA8*AA10+AB8*AB10+AC8*AC10+AD8*AD10+AE8*AE10)/D10 -> 0.1769508395 | H20: 65 | I20: 4 | J20: 21 | K20: 0 | L20: 0 | M20: 24 | N20: 450 | O20: =AD8*D5 -> 1562.5 | P20: =O20/D5 -> 62.5 | T20: 0.21 | U20: 0 | V20: 0 | W20: 0.24 | X20: =H20 -> 65
C21: K | D21: =(AA8*AA11+AB8*AB11+AC8*AC11+AD8*AD11+AE8*AE11)/D10 -> 0.06434575982 | H21: 49 | I21: 5 | J21: 0 | K21: 0 | L21: 0 | M21: 0 | N21: 460 | O21: =AE8*D5 -> 0 | P21: =O21/D5 -> 0 | T21: 0 | U21: 0 | V21: 0 | W21: 0 | X21: =H21 -> 49
C22: S | D22: =(AA8*AA12+AB8*AB12+AC8*AC12+AD8*AD12+AE8*AE12)/D10 -> 0.04825931987
C24: Density of Blend (lbs/gal) | D24: =(D26/D25)*8.34 -> 5.56
C25: Weight of water | D25: 15
C26: Weight of Fertilizer | D26: 10
C28: Bulk Density (lbs/cu ft) | D28: =(AA8/D10*X17)+(AB8/D10*X18)+(AC8/D10*X19)+(AD8/D10*X20)+(AE8/D10*X21) -> 55.94162613 | I28: To Optimize Blend press: "Control r"
C29: Bulk Density (kg/m3) | D29: =D28*16.01846 -> 896.0987005 | I29: Then Press Ok
